fUSD/lending_fUSD_20251222
["ID","MTS","AMOUNT","RATE_DAILY","PERIOD"]
[399495802,1766416241061,-500.0,0.00016149,2]
[399495803,1766416241069,-250.0,0.00016149,2]
[399495804,1766416241079,-500.0,0.00016149,2]
[399495805,1766416241089,-250.0,0.00016149,2]
[399495806,1766416241099,-500.0,0.00016149,2]
[399495807,1766416241111,-250.0,0.00016149,2]
[399495808,1766416241121,-500.0,0.00016149,2]
[399495809,1766416241131,-187.7953491,0.00016149,2]
[399495810,1766416241140,-250.0,0.00016149,2]
[399495811,1766416241150,-151.0,0.00016149,2]
[399495812,1766416241159,-250.0,0.00016149,2]
[399495813,1766416241168,-250.0,0.00016149,2]
[399495814,1766416241177,-250.0,0.00016149,2]
[399495815,1766416241187,-250.0,0.00016149,2]
[399495816,1766416241197,-250.0,0.00016149,2]
[399495817,1766416241207,-250.0,0.00016149,2]
[399495818,1766416241216,-250.0,0.00016149,2]
[399495819,1766416241225,-250.0,0.00016149,2]
[399495820,1766416241235,-250.0,0.00016149,2]
[399495821,1766416241244,-250.0,0.00016149,2]
[399495822,1766416241253,-250.0,0.00016149,2]
[399495823,1766416241262,-250.0,0.00016149,2]
[399495824,1766416241272,-1000.0,0.00016306,2]
[399495825,1766416241281,-150.0,0.00016351,2]
[399495826,1766416241290,-150.271,0.00016351,2]
[399495827,1766416241299,-1609.0,0.00016351,2]
[399495828,1766416241309,-1326.0,0.00016351,2]
[399495829,1766416241319,-612.0,0.00016351,2]
[399495830,1766416241328,-1857.626,0.00016351,2]
[399495831,1766416241337,-518.0,0.00016351,2]
[399495832,1766416241346,-1262.0,0.00016351,2]
[399495833,1766416241355,-2429.0,0.00016351,2]
[399495834,1766416241365,-564.0,0.00016351,2]
[399495835,1766416241375,-166.61304845,0.00016395,2]
[399495836,1766416241386,-1286.4,0.00016438,2]
[399495837,1766416241395,-500.0,0.00016438,2]
[399495838,1766416241404,-150.27593202,0.000166,2]
[399495839,1766416241413,-1600.0,0.0001662,2]
[399495840,1766416241423,-166.61304845,0.00016647,2]
[399495841,1766416241432,-500.0,0.00016653,2]
[399495842,1766416241441,-1308.49734538,0.0001666,2]
[399495843,1766416241452,-201.93286099,0.00016697,2]
[399495844,1766416241461,-553.64373807,0.00016697,2]
[399495845,1766416241471,-213.14631305,0.00016697,2]
[399495846,1766416241483,-1000.0,0.000167,2]
[399495847,1766416241492,-1214.0,0.000167,2]
[399495848,1766416241502,-400.3595922,0.000168,2]
[399495849,1766416241512,-309.90094081,0.000168,2]
[399495850,1766416241521,-150.57173717,0.000168,2]
[399495851,1766416241531,-400.35959212,0.00016811,2]
[399495852,1766416241544,-400.35959212,0.00016822,2]
[399495853,1766416241553,-400.35959212,0.00016833,2]
[399495854,1766416241563,-241.0,0.00016838,2]
[399495855,1766416241574,-400.35959212,0.00016844,2]
[399495856,1766416241583,-400.35959212,0.00016856,2]
[399495857,1766416241593,-200.0,0.00016864,2]
[399495858,1766416241603,-400.35959212,0.00016867,2]
[399495859,1766416241614,-400.35959212,0.00016878,2]
[399495860,1766416241625,-400.35959212,0.00016889,2]
[399495861,1766416241635,-320.3278123,0.0001689,2]
[399495862,1766416241645,-500.0,0.00016899,2]
[399495863,1766416241659,-578.59832559,0.00016899,2]
[399495864,1766416241668,-712.2834,0.000169,2]
[399495865,1766416241888,-256.45885176,0.000169,2]
[399495866,1766416241898,-400.35959212,0.000169,2]
[399495867,1766416241907,-166.61304845,0.000169,2]
[399495868,1766416241916,-767.09080756,0.000169,2]
[399495869,1766416241926,-157.9468201,0.000169,2]
[399495870,1766416241935,-189.38580214,0.000169,2]
[399495871,1766416241944,-150.57173717,0.000169,2]
[399495872,1766416241953,-714.74572409,0.000169,2]
[399495873,1766416241963,-500.0,0.000169,2]
[399495874,1766416241972,-500.0,0.000169,2]
[399495875,1766416241981,-500.0,0.000169,2]
[399495876,1766416241989,-500.0,0.000169,2]
[399495877,1766416241998,-500.0,0.000169,2]
[399495878,1766416242007,-500.0,0.000169,2]
[399495879,1766416242015,-500.0,0.000169,2]
[399495880,1766416242024,-500.0,0.000169,2]
[399495881,1766416242034,-500.0,0.000169,2]
[399495882,1766416242043,-500.0,0.000169,2]
[399495883,1766416242052,-500.0,0.000169,2]
[399495884,1766416242060,-500.0,0.000169,2]
[399495885,1766416242069,-500.0,0.000169,2]
[399495886,1766416242078,-500.0,0.000169,2]
[399495887,1766416242087,-500.0,0.000169,2]
[399495888,1766416242096,-500.0,0.000169,2]
[399495889,1766416242105,-500.0,0.000169,2]
[399495890,1766416242117,-500.0,0.000169,2]
[399495891,1766416242128,-500.0,0.000169,2]
[399495892,1766416242137,-500.0,0.000169,2]
[399495893,1766416242146,-500.0,0.000169,2]
[399495894,1766416242155,-415.66004447,0.000169,2]
[399495895,1766416242172,-6771.0,0.000169,2]
[399495896,1766416242180,-457.0,0.00016959,2]
[399495897,1766416242189,-500.0,0.00016972,2]
[399495898,1766416242199,-500.0,0.00016973,2]
[399495899,1766416242207,-607.27794766,0.00016973,2]
[399495900,1766416242216,-500.0,0.00016973,2]
[399495901,1766416242226,-500.0,0.00016973,2]
[399495902,1766416242235,-517.55500559,0.00016973,2]
[399495903,1766416242244,-500.0,0.00016973,2]
[399495904,1766416242254,-500.0,0.00016973,2]
[399495905,1766416242263,-500.0,0.00016973,2]
[399495906,1766416242273,-500.0,0.00016973,2]
[399495907,1766416242282,-500.0,0.00016973,2]
[399495908,1766416242292,-500.0,0.00016973,2]
[399495909,1766416242301,-500.0,0.00016973,2]
[399495910,1766416242311,-500.0,0.00016973,2]
[399495911,1766416242321,-179.47316237,0.00016973,2]
[399495912,1766416242330,-187.58612974,0.00016973,2]
[399495913,1766416242339,-473.51090272,0.00016973,2]
[399495914,1766416242349,-500.0,0.00016973,2]
[399495915,1766416242358,-500.0,0.00016973,2]
[399495916,1766416242368,-500.0,0.00016973,2]
[399495917,1766416242379,-500.0,0.00016973,2]
[399495918,1766416242389,-500.0,0.00016973,2]
[399495919,1766416242398,-500.0,0.00016973,2]
[399495920,1766416242407,-500.0,0.00016973,2]
[399495921,1766416242417,-500.0,0.00016973,2]
[399495922,1766416242427,-500.0,0.00016973,2]
[399495923,1766416242436,-500.0,0.00016973,2]
[399495924,1766416242446,-500.0,0.00016973,2]
[399495925,1766416242455,-500.0,0.00016973,2]
[399495926,1766416242465,-500.0,0.00016973,2]
[399495927,1766416242474,-192.33860374,0.00016973,2]
[399495928,1766416242483,-500.0,0.00016973,2]
[399495929,1766416242493,-500.0,0.00016973,2]
[399495930,1766416242502,-500.0,0.00016973,2]
[399495931,1766416242511,-500.0,0.00016973,2]
[399495932,1766416242520,-500.0,0.00016973,2]
[399495933,1766416242529,-500.0,0.00016973,2]
[399495934,1766416242539,-500.0,0.00016973,2]
[399495935,1766416242549,-468.6988227,0.00016973,2]
[399495936,1766416242559,-500.0,0.00016973,2]
[399495937,1766416242568,-500.0,0.00016973,2]
[399495938,1766416242577,-500.0,0.00016973,2]
[399495939,1766416242587,-500.0,0.00016973,2]
[399495941,1766416242597,-500.0,0.00016973,2]
[399495942,1766416242607,-500.0,0.00016973,2]
[399495943,1766416242616,-500.0,0.00016973,2]
[399495944,1766416242626,-500.0,0.00016973,2]
[399495945,1766416242635,-516.53532775,0.00016973,2]
[399495947,1766416242650,-166.96828513,0.00016973,2]
[399495951,1766416242660,-161.12986217,0.00016973,2]
[399495954,1766416242670,-500.45563157,0.00016973,2]
[399495955,1766416242679,-500.19873097,0.00016973,2]
[399495957,1766416242689,-523.16788729,0.00016973,2]
[399495958,1766416242698,-344.75321982,0.00016973,2]
[399495959,1766416242708,-500.0,0.00016973,2]
[399495960,1766416242720,-500.0,0.00016973,2]
[399495961,1766416242730,-500.0,0.00016973,2]
[399495962,1766416242740,-220.3394429,0.00016973,2]
[399495963,1766416242749,-500.0,0.00016973,2]
[399495964,1766416242759,-500.0,0.00016973,2]
[399495965,1766416242769,-150.0,0.00016973,2]
[399495966,1766416242779,-150.0,0.00016973,2]
[399495967,1766416242789,-320.3278123,0.0001699,2]
[399495968,1766416242799,-1411.9119068,0.00016998,2]
[399495969,1766416242808,-4442.8374174,0.00016998,2]
[399495970,1766416242818,-1000.0,0.00016999,2]
[399495971,1766416242827,-1000.0,0.00016999,2]
[399495972,1766416242837,-300.0,0.00016999,2]
[399495973,1766416242847,-666.0,0.00016999,2]
[399495974,1766416242856,-300.0,0.00016999,2]
[399495975,1766416242866,-500.0,0.00016999,2]
[399495976,1766416242877,-500.0,0.00016999,2]
[399495977,1766416242887,-500.0,0.00016999,2]
[399495978,1766416242896,-500.0,0.00016999,2]
[399495979,1766416242905,-500.0,0.00016999,2]
[399495980,1766416242914,-500.0,0.00016999,2]
[399495981,1766416242924,-500.0,0.00016999,2]
[399495982,1766416242934,-634.27,0.00016999,2]
[399495983,1766416242944,-300.0,0.00016999,2]
[399495984,1766416242953,-666.0,0.00016999,2]
[399495985,1766416242962,-3785589.50769439,0.00017,2]
[399495986,1766416243205,-448.33699998,0.00017,2]
[399495987,1766416243216,-461.295,0.00017,2]
[399495988,1766416243227,-3340.40221765,0.00017,2]
[399495989,1766416243238,-785.864716,0.00017,2]
[399495990,1766416243250,-357.67640451,0.00017,2]
[399495991,1766416243292,-1579.56364063,0.00017,2]
[399495992,1766416243303,-458.91170172,0.00017,2]
[399495993,1766416243490,-151.0,0.00015821,2]
[399495994,1766416243500,-14041.09706721,0.00017,2]
[399495995,1766416243511,-3086.11320278,0.00017,2]
[399495998,1766416246247,-1536.73069999,0.00017,2]
[399495999,1766416246259,-432363.66505229,0.00017,2]
[399496000,1766416246270,-160.0,0.00017,2]
[399496001,1766416246280,-11011.4574307,0.00017,2]
[399496002,1766416246290,-8381.5850465,0.00017,2]
[399496003,1766416246299,-945.6679642,0.00017,2]
[399496004,1766416246309,-152.0,0.00017,2]
[399496005,1766416246318,-1256.0,0.00017,2]
[399496006,1766416246327,-1256.0,0.00017,2]
[399496007,1766416246337,-152.0,0.00017,2]
[399496008,1766416246346,-152.0,0.00017,2]
[399496009,1766416246355,-1256.0,0.00017,2]
[399496010,1766416246365,-152.0,0.00017,2]
[399496011,1766416246376,-1256.0,0.00017,2]
[399496012,1766416246386,-152.0,0.00017,2]
[399496013,1766416246395,-152.0,0.00017,2]
[399496014,1766416246404,-1256.0,0.00017,2]
[399496015,1766416246414,-152.0,0.00017,2]
[399496016,1766416246423,-152.0,0.00017,2]
[399496017,1766416246432,-1256.0,0.00017,2]
[399496018,1766416246441,-152.0,0.00017,2]
[399496019,1766416246450,-152.0,0.00017,2]
[399496020,1766416246460,-152.0,0.00017,2]
[399496021,1766416246469,-1256.0,0.00017,2]
[399496022,1766416246479,-152.0,0.00017,2]
[399496023,1766416246489,-152.0,0.00017,2]
[399496024,1766416246499,-1256.0,0.00017,2]
[399496025,1766416246508,-152.0,0.00017,2]
[399496026,1766416246518,-1256.0,0.00017,2]
[399496027,1766416246527,-152.0,0.00017,2]
[399496028,1766416246537,-1256.0,0.00017,2]
[399496029,1766416246546,-152.0,0.00017,2]
[399496030,1766416246555,-1256.0,0.00017,2]
[399496031,1766416246565,-152.0,0.00017,2]
[399496032,1766416246574,-152.0,0.00017,2]
[399496033,1766416246583,-1256.0,0.00017,2]
[399496034,1766416246593,-1256.0,0.00017,2]
[399496035,1766416246603,-152.0,0.00017,2]
[399496036,1766416246613,-152.0,0.00017,2]
[399496037,1766416246624,-152.0,0.00017,2]
[399496038,1766416246634,-1256.0,0.00017,2]
[399496039,1766416246645,-152.0,0.00017,2]
[399496040,1766416246657,-1256.0,0.00017,2]
[399496041,1766416246667,-152.0,0.00017,2]
[399496042,1766416246676,-152.0,0.00017,2]
[399496043,1766416246686,-1256.0,0.00017,2]
[399496044,1766416246696,-152.0,0.00017,2]
[399496045,1766416246705,-152.0,0.00017,2]
[399496046,1766416246715,-1256.0,0.00017,2]
[399496047,1766416246725,-152.0,0.00017,2]
[399496048,1766416246734,-152.0,0.00017,2]
[399496049,1766416246744,-1256.0,0.00017,2]
[399496050,1766416246753,-152.0,0.00017,2]
[399496051,1766416246763,-152.0,0.00017,2]
[399496052,1766416246772,-1256.0,0.00017,2]
[399496053,1766416246781,-152.0,0.00017,2]
[399496054,1766416246791,-152.0,0.00017,2]
[399496055,1766416246801,-1256.0,0.00017,2]
[399496056,1766416246810,-152.0,0.00017,2]
[399496057,1766416246820,-152.0,0.00017,2]
[399496058,1766416246830,-152.0,0.00017,2]
[399496059,1766416246839,-1256.0,0.00017,2]
[399496060,1766416246848,-152.0,0.00017,2]
[399496061,1766416246858,-152.0,0.00017,2]
[399496062,1766416246867,-1256.0,0.00017,2]
[399496063,1766416246878,-152.0,0.00017,2]
[399496064,1766416246887,-152.0,0.00017,2]
[399496065,1766416246896,-152.0,0.00017,2]
[399496066,1766416246906,-1256.0,0.00017,2]
[399496067,1766416246916,-152.0,0.00017,2]
[399496068,1766416246925,-1256.0,0.00017,2]
[399496069,1766416246935,-152.0,0.00017,2]
[399496070,1766416246944,-152.0,0.00017,2]
[399496071,1766416246954,-152.0,0.00017,2]
[399496072,1766416246963,-152.0,0.00017,2]
[399496073,1766416246973,-152.0,0.00017,2]
[399496074,1766416246982,-1256.0,0.00017,2]
[399496075,1766416246992,-152.0,0.00017,2]
[399496076,1766416247001,-1256.0,0.00017,2]
[399496077,1766416247010,-152.0,0.00017,2]
[399496078,1766416247020,-152.0,0.00017,2]
[399496079,1766416247030,-1256.0,0.00017,2]
[399496080,1766416247039,-152.0,0.00017,2]
[399496081,1766416247048,-152.0,0.00017,2]
[399496082,1766416247058,-1256.0,0.00017,2]
[399496083,1766416247068,-286.13362621,0.00017,2]
[399496084,1766416247078,-152.0,0.00017,2]
[399496085,1766416247088,-1256.0,0.00017,2]
[399496086,1766416247097,-152.0,0.00017,2]
[399496087,1766416247106,-152.0,0.00017,2]
[399496088,1766416247116,-1256.0,0.00017,2]
[399496089,1766416247127,-152.0,0.00017,2]
[399496090,1766416247136,-1256.0,0.00017,2]
[399496091,1766416247146,-154.0,0.00017,2]
[399496092,1766416247156,-152.0,0.00017,2]
[399496093,1766416247165,-1256.0,0.00017,2]
[399496094,1766416247175,-152.0,0.00017,2]
[399496095,1766416247185,-154.0,0.00017,2]
[399496096,1766416247195,-1256.0,0.00017,2]
[399496097,1766416247205,-152.0,0.00017,2]
[399496098,1766416247214,-1256.0,0.00017,2]
[399496099,1766416247224,-152.0,0.00017,2]
[399496100,1766416247234,-1256.0,0.00017,2]
[399496101,1766416247244,-1256.0,0.00017,2]
[399496102,1766416247254,-152.0,0.00017,2]
[399496103,1766416247264,-1256.0,0.00017,2]
[399496104,1766416247274,-152.0,0.00017,2]
[399496105,1766416247283,-152.0,0.00017,2]
[399496106,1766416247293,-209.24615672,0.00017,2]
[399496107,1766416247303,-153.0,0.00017,2]
[399496108,1766416247312,-153.0,0.00017,2]
[399496109,1766416247322,-1256.0,0.00017,2]
[399496110,1766416247332,-153.0,0.00017,2]
[399496111,1766416247341,-1256.0,0.00017,2]
[399496112,1766416247351,-153.0,0.00017,2]
[399496113,1766416247360,-1256.0,0.00017,2]
[399496114,1766416247370,-153.0,0.00017,2]
[399496115,1766416247382,-1256.0,0.00017,2]
[399496116,1766416247392,-153.0,0.00017,2]
[399496117,1766416247401,-1256.0,0.00017,2]
[399496118,1766416247411,-153.0,0.00017,2]
[399496119,1766416247420,-1256.0,0.00017,2]
[399496120,1766416247430,-153.0,0.00017,2]
[399496121,1766416247439,-1256.0,0.00017,2]
[399496122,1766416247449,-153.0,0.00017,2]
[399496123,1766416247459,-153.0,0.00017,2]
[399496124,1766416247468,-1337.72421018,0.00017,2]
[399496125,1766416247478,-153.0,0.00017,2]
[399496126,1766416247487,-1256.0,0.00017,2]
[399496127,1766416247497,-153.0,0.00017,2]
[399496128,1766416247507,-1256.0,0.00017,2]
[399496129,1766416247516,-222.94202128,0.00017,2]
[399496130,1766416247526,-1256.0,0.00017,2]
[399496131,1766416247535,-153.0,0.00017,2]
[399496132,1766416247545,-1256.0,0.00017,2]
[399496133,1766416247554,-153.0,0.00017,2]
[399496134,1766416247564,-1256.0,0.00017,2]
[399496135,1766416247573,-153.0,0.00017,2]
[399496136,1766416247584,-153.0,0.00017,2]
[399496137,1766416247593,-153.0,0.00017,2]
[399496138,1766416247603,-157.0,0.00017,2]
[399496139,1766416247612,-153.0,0.00017,2]
[399496140,1766416247622,-157.0,0.00017,2]
[399496141,1766416247633,-153.0,0.00017,2]
[399496142,1766416247647,-157.0,0.00017,2]
[399496143,1766416247657,-153.0,0.00017,2]
[399496144,1766416247667,-157.0,0.00017,2]
[399496145,1766416247677,-153.0,0.00017,2]
[399496146,1766416247687,-157.0,0.00017,2]
[399496147,1766416247697,-153.0,0.00017,2]
[399496148,1766416247706,-158.23603183,0.00017,2]
[399496149,1766416247717,-153.0,0.00017,2]
[399496150,1766416247727,-153.0,0.00017,2]
[399496151,1766416247737,-153.0,0.00017,2]
[399496152,1766416247747,-153.0,0.00017,2]
[399496153,1766416247757,-153.0,0.00017,2]
[399496154,1766416247767,-153.0,0.00017,2]
[399496155,1766416247777,-153.0,0.00017,2]
[399496156,1766416247788,-153.0,0.00017,2]
[399496157,1766416247797,-153.0,0.00017,2]
[399496158,1766416247807,-153.0,0.00017,2]
[399496159,1766416247816,-153.0,0.00017,2]
[399496160,1766416247826,-153.0,0.00017,2]
[399496161,1766416247836,-153.0,0.00017,2]
[399496162,1766416247845,-153.0,0.00017,2]
[399496163,1766416247856,-153.0,0.00017,2]
[399496164,1766416247866,-153.0,0.00017,2]
[399496165,1766416247877,-153.0,0.00017,2]
[399496166,1766416247887,-153.0,0.00017,2]
[399496167,1766416247897,-153.0,0.00017,2]
[399496168,1766416247907,-153.0,0.00017,2]
[399496169,1766416247916,-153.0,0.00017,2]
[399496170,1766416247926,-153.0,0.00017,2]
[399496171,1766416247936,-153.0,0.00017,2]
[399496172,1766416247945,-153.0,0.00017,2]
[399496173,1766416247955,-153.0,0.00017,2]
[399496174,1766416247965,-153.0,0.00017,2]
[399496175,1766416247974,-151.0,0.00017,2]
[399496176,1766416247987,-153.0,0.00017,2]
[399496177,1766416248193,-153.0,0.00017,2]
[399496178,1766416248203,-153.0,0.00017,2]
[399496179,1766416248214,-153.0,0.00017,2]
[399496180,1766416248223,-153.0,0.00017,2]
[399496181,1766416248233,-153.0,0.00017,2]
[399496182,1766416248243,-153.0,0.00017,2]
[399496183,1766416248254,-153.0,0.00017,2]
[399496184,1766416248264,-153.0,0.00017,2]
[399496185,1766416248274,-246.88368572,0.00017,2]
[399496186,1766416248284,-151.0,0.00017,2]
[399496187,1766416248294,-250.0,0.00017,2]
[399496188,1766416248305,-150.0,0.00017,2]
[399496189,1766416248315,-168.0,0.0001701,2]
[399496190,1766416248324,-278.0,0.00017022,2]
[399496191,1766416248334,-150.0,0.00017028,2]
[399496192,1766416248344,-287.9078189,0.00017055,2]
[399496193,1766416248353,-832.0,0.00017059,2]
[399496194,1766416248363,-328.0,0.00017199,2]
[399496195,1766416248373,-1000.0,0.000172,2]
[399496196,1766416248384,-209.40437684,0.00017245,2]
[399496197,1766416248393,-574.12855637,0.00017245,2]
[399496198,1766416248403,-168.0,0.0001733,2]
[399496199,1766416248412,-207.4,0.00017332,2]
[399496200,1766416248422,-150.27,0.0001736,2]
[399496201,1766416248431,-832.0,0.00017388,2]
[399496202,1766416248441,-168.0,0.00017419,2]
[399496203,1766416248451,-166.66,0.0001745,2]
[399496204,1766416248460,-168.0,0.00017463,2]
[399496205,1766416248470,-334.5472959,0.00017518,2]
[399496206,1766416248479,-300.0,0.0001752,2]
[399496207,1766416248489,-681.43055394,0.0001752,2]
[399496208,1766416248499,-300.0,0.0001752,2]
[399496209,1766416248509,-666.0,0.0001752,2]
[399496210,1766416248519,-508.22926501,0.0001752,2]
[399496211,1766416248528,-1000.0,0.00017521,2]
[399496212,1766416248538,-1000.0,0.00017521,2]
[399496213,1766416248547,-500.0,0.00017521,2]
[399496214,1766416248557,-1000.0,0.00017521,2]
[399496215,1766416248566,-1000.0,0.00017521,2]
[399496216,1766416248575,-1000.0,0.00017521,2]
[399496217,1766416248585,-1000.0,0.00017521,2]
[399496218,1766416248595,-1000.0,0.00017521,2]
[399496219,1766416248605,-749.54527512,0.00017521,2]
[399496220,1766416248615,-1000.0,0.00017521,2]
[399496221,1766416248624,-1000.0,0.00017521,2]
[399496222,1766416248634,-1000.0,0.00017521,2]
[399496223,1766416248645,-1000.0,0.00017521,2]
[399496224,1766416248657,-1000.0,0.00017521,2]
[399496225,1766416248666,-1000.0,0.00017521,2]
[399496226,1766416248676,-1000.0,0.00017521,2]
[399496227,1766416248686,-1000.0,0.00017521,2]
[399496228,1766416248695,-1000.0,0.00017521,2]
[399496229,1766416248704,-1000.0,0.00017521,2]
[399496230,1766416248713,-1000.0,0.00017521,2]
[399496231,1766416248725,-1000.0,0.00017521,2]
[399496232,1766416248735,-1000.0,0.00017521,2]
[399496233,1766416248744,-1000.0,0.00017521,2]
[399496234,1766416248754,-1000.0,0.00017521,2]
[399496235,1766416248763,-1000.0,0.00017521,2]
[399496236,1766416248773,-575.25123354,0.00017521,2]
[399496237,1766416248783,-1000.0,0.00017521,2]
[399496238,1766416248792,-1000.0,0.00017521,2]
[399496239,1766416248802,-1000.45922425,0.00017521,2]
[399496240,1766416248811,-1001.13881872,0.00017521,2]
[399496241,1766416248821,-1000.0,0.00017521,2]
[399496242,1766416248831,-1000.0,0.00017521,2]
[399496243,1766416248840,-1000.0,0.00017521,2]
[399496244,1766416248850,-1000.0,0.00017521,2]
[399496245,1766416248859,-1000.0,0.00017521,2]
[399496246,1766416248869,-1000.0,0.00017521,2]
[399496247,1766416248880,-1000.0,0.00017521,2]
[399496248,1766416248890,-1000.0,0.00017521,2]
[399496249,1766416248899,-1000.0,0.00017521,2]
[399496250,1766416248908,-1000.0,0.00017521,2]
[399496251,1766416248917,-566.4005916,0.00017521,2]
[399496252,1766416248926,-1000.0,0.00017521,2]
[399496253,1766416248935,-1000.0,0.00017521,2]
[399496254,1766416248944,-1000.0,0.00017521,2]
[399496255,1766416248954,-200.0,0.00017556,2]
[399496256,1766416248963,-168.0,0.00017562,2]
[399496257,1766416248972,-160.0,0.000176,14]
[399496258,1766416248982,-168.0,0.00017622,2]
[399496259,1766416248991,-168.0,0.00017758,2]
[399496260,1766416249000,-217.15233878,0.00017793,2]
[399496261,1766416249009,-595.37131296,0.00017793,2]
[399496262,1766416249019,-168.0,0.00017807,2]
[399496263,1766416249028,-166.66,0.00017959,2]
[399496264,1766416249038,-300.0,0.00017973,2]
[399496265,1766416249047,-150.0,0.00017973,2]
[399496266,1766416249056,-163.44678567,0.00017973,2]
[399496267,1766416249065,-320.3278123,0.0001799,2]
[399496268,1766416249075,-300.0,0.00017997,2]
[399496269,1766416249085,-300.0,0.00017997,2]
[399496270,1766416249094,-147954.52343892,0.00017998,2]
[399496271,1766416249102,-1785.68,0.00017999,2]
[399496272,1766416249111,-1785.68,0.00017999,2]
[399496273,1766416249121,-1785.68,0.00017999,2]
[399496274,1766416249132,-1785.68,0.00017999,2]
[399496275,1766416249141,-300.0,0.00017999,2]
[399496276,1766416249150,-147485.60408141,0.00018,2]
[399496277,1766416249190,-10592.38152747,0.00018,2]
[399496278,1766416249201,-440.84944782,0.00018,2]
[399496279,1766416666461,200.0,0.00018,30]
[399496280,1766416692931,500.0,0.00018,30]
[399496281,1766416718361,300.0,0.00015,30]
[399496282,1766416733136,-165.14,0.00012921,2]
[399496283,1766416736569,300.0,0.00019,30]
[399496284,1766416740205,-300.0,0.00013244,2]
[399496285,1766416746462,-195.0,0.00013567,2]
[399496286,1766416752426,-300.0,0.00013785,2]
[399496287,1766416761662,-300.0,0.00013854,2]
[399496288,1766416762417,300.0,0.00016,30]
[399496289,1766416768187,-600.0,0.00013923,2]
[399496290,1766416784482,-3539.88959208,0.00014196,2]
[399496291,1766416802565,-241.0,0.00014212,2]
[399496292,1766416802587,-300.0,0.00014212,2]
[399496293,1766416802614,-1200.0,0.00014212,2]
[399496294,1766416802637,-600.0,0.00014213,2]
[399496295,1766416802661,-250.0,0.00014213,2]
[399496296,1766416802684,-195.0,0.00014213,2]
[399496297,1766416802706,-104.0,0.00014213,2]
[399496298,1766416849995,300.0,0.00016,30]
[399496299,1766416852469,300.0,0.00016,30]
[399496300,1766416855021,300.0,0.00016,30]
[399496301,1766416856081,300.0,0.00016,30]
[399496302,1766416856682,300.0,0.00016,30]
[399496303,1766416857185,300.0,0.00016,30]
[399496304,1766416857682,300.0,0.00016,30]
[399496305,1766416858406,300.0,0.00016,30]
[399496306,1766416858869,300.0,0.00016,30]
[399496307,1766416915304,300.0,0.00015,30]
[399496308,1766416931111,300.0,0.00014213,30]
[399496315,1766417265060,899.33,7.485e-05,2]
[399496316,1766417265285,899.33,7.879e-05,2]
[399496317,1766417265489,899.33,8.272e-05,2]